fUST/lending_fUST_20241128
["ID","MTS","AMOUNT","RATE_DAILY","PERIOD"]
[343657759,1732801843277,-6285.33424019,0.00024555,2]
[343657805,1732802270864,158.354745,0.00013973,2]
[343657806,1732802515894,200.0,0.00026,120]
[343657807,1732802555590,250.0,0.00026,120]
[343657855,1732803032487,-158.354745,0.00023435,2]
[343657856,1732803032497,-206.048889,0.0002353,2]
[343657859,1732803032507,-6852.80943731,0.00023554,2]
[343657988,1732803039050,-1112.89466279,0.00023554,2]
[343657989,1732803039060,-29001.61705057,0.00024,3]
[343658009,1732803043495,-949.8840459,0.00024,3]
[343658010,1732803043504,-3404.06605869,0.00024469,2]
[343658011,1732803043514,-300.0,0.00024477,2]
[343658013,1732803043524,-300.0,0.00024477,2]
[343658014,1732803043533,-3862.94512727,0.00024478,2]
[343658015,1732803043543,-467.04203652,0.00024478,2]
[343658016,1732803043553,-22.59284418,0.00024554,2]
[343658026,1732803091863,159.196681,0.00013973,2]
[343658028,1732803346715,338.82553774,0.0002,7]
[343658260,1732803957138,159.863074,0.00013973,2]
[343658269,1732804119700,1339.48198018,0.00015,7]
[343658270,1732804119732,931.91242781,0.00015,7]
[343658316,1732804232657,-2161.39166127,0.00022771,2]
[343658318,1732804232667,-250.0,0.0002295,2]
[343658319,1732804232677,-773.5186232,0.00023001,2]
[343658320,1732804232687,-71.05254834,0.00023327,2]
[343658321,1732804232698,-228.94745166,0.00023327,2]
[343658322,1732804232708,-300.0,0.00023329,2]
[343658323,1732804232719,-5162.0,0.00023329,2]
[343658324,1732804232732,-7703.2077449,0.0002333,2]
[343658325,1732804232742,-1139.0,0.0002376,2]
[343658326,1732804232751,-3167.03734952,0.000239,2]
[343658327,1732804232762,-2851.83845392,0.00024,2]
[343658328,1732804232778,-3164.46299966,0.00024,2]
[343658329,1732804232789,-584.5,0.00024,2]
[343658335,1732804238638,-7249.11402607,0.00024,2]
[343658336,1732804238649,-2515.88051058,0.00024,2]
[343658337,1732804238665,-159.863074,0.00024224,2]
[343658338,1732804238675,-208.297113,0.0002449,2]
[343658339,1732804238684,-239.04,0.00024547,3]
[343658340,1732804238695,-717.12,0.00024547,3]
[343658341,1732804238705,-311.36135768,0.00024554,2]
[343658342,1732804238717,-1975.87185967,0.00024554,4]
[343658343,1732804238733,-1770.69030883,0.00024554,2]
[343658344,1732804238743,-5095.00826387,0.00024555,2]
[343658345,1732804238827,-79481.92407592,0.00024555,2]
[343658355,1732804240593,-113862.9322577,0.00024555,2]
[343658356,1732804240603,-2674.11737917,0.00024555,2]
[343658357,1732804240613,-6200.36021648,0.00024556,2]
[343658358,1732804240624,-151.0,0.00024556,7]
[343658359,1732804240633,-151.0,0.00024556,7]
[343658360,1732804240642,-151.0,0.00024556,7]
[343658361,1732804240652,-459.595579,0.00024556,7]
[343658362,1732804240668,-459.595579,0.00024556,7]
[343658363,1732804240677,-459.595579,0.00024556,7]
[343658364,1732804240686,-459.595579,0.00024556,7]
[343658365,1732804240696,-151.0,0.00024556,7]
[343658366,1732804240705,-151.0,0.00024556,7]
[343658367,1732804240715,-151.0,0.00024556,7]
[343658368,1732804240727,-151.0,0.00024556,7]
[343658369,1732804240736,-151.0,0.00024556,7]
[343658370,1732804240746,-151.0,0.00024556,7]
[343658371,1732804240756,-199.065706,0.00024556,7]
[343658372,1732804240766,-183.59505514,0.00024556,2]
[343658373,1732804240776,-500.0,0.00024556,2]
[343658374,1732804240785,-500.0,0.00024556,2]
[343658375,1732804240795,-194.49701212,0.00024556,2]
[343658376,1732804240805,-500.0,0.00024556,2]
[343658377,1732804240814,-500.0,0.00024556,2]
[343658378,1732804240824,-500.0,0.00024556,2]
[343658379,1732804240833,-550.69485387,0.00024556,2]
[343658380,1732804240843,-247.73857026,0.00024556,2]
[343658381,1732804240852,-500.0,0.00024556,2]
[343658382,1732804240862,-500.0,0.00024556,2]
[343658383,1732804240871,-500.0,0.00024556,2]
[343658384,1732804240880,-500.0,0.00024556,2]
[343658385,1732804240890,-500.0,0.00024556,2]
[343658386,1732804240899,-500.0,0.00024556,2]
[343658387,1732804240912,-265.90198402,0.00024556,2]
[343658388,1732804240921,-500.0,0.00024556,2]
[343658389,1732804240930,-500.0,0.00024556,2]
[343658390,1732804240939,-500.0,0.00024556,2]
[343658391,1732804240949,-500.0,0.00024556,2]
[343658392,1732804240959,-500.0,0.00024556,2]
[343658393,1732804240968,-500.0,0.00024556,2]
[343658394,1732804240978,-500.0,0.00024556,2]
[343658395,1732804240987,-500.0,0.00024556,2]
[343658396,1732804240996,-152.60671119,0.00024556,2]
[343658397,1732804241006,-500.0,0.00024556,2]
[343658398,1732804241015,-500.0,0.00024556,2]
[343658399,1732804241024,-500.0,0.00024556,2]
[343658400,1732804241034,-500.0,0.00024556,2]
[343658401,1732804241043,-500.0,0.00024556,2]
[343658402,1732804241052,-500.0,0.00024556,2]
[343658403,1732804241061,-500.0,0.00024556,2]
[343658404,1732804241070,-500.0,0.00024556,2]
[343658405,1732804241080,-193.60435258,0.00024556,2]
[343658406,1732804241089,-500.0,0.00024556,2]
[343658407,1732804241098,-500.0,0.00024556,2]
[343658408,1732804241107,-500.0,0.00024556,2]
[343658409,1732804241117,-500.0,0.00024556,2]
[343658410,1732804241126,-500.0,0.00024556,2]
[343658411,1732804241135,-302.62109127,0.00024556,2]
[343658412,1732804241145,-500.0,0.00024556,2]
[343658413,1732804241154,-500.0,0.00024556,2]
[343658414,1732804241169,-500.0,0.00024556,2]
[343658415,1732804241179,-500.0,0.00024556,2]
[343658416,1732804241189,-500.0,0.00024556,2]
[343658417,1732804241198,-500.0,0.00024556,2]
[343658418,1732804241208,-500.0,0.00024556,2]
[343658419,1732804241217,-500.0,0.00024556,2]
[343658420,1732804241226,-500.0,0.00024556,2]
[343658421,1732804241235,-500.0,0.00024556,2]
[343658422,1732804241245,-500.0,0.00024556,2]
[343658423,1732804241255,-500.0,0.00024556,2]
[343658424,1732804241265,-500.0,0.00024556,2]
[343658425,1732804241275,-500.0,0.00024556,2]
[343658426,1732804241284,-500.0,0.00024556,2]
[343658427,1732804241294,-500.0,0.00024556,2]
[343658428,1732804241303,-500.0,0.00024556,2]
[343658429,1732804241313,-500.0,0.00024556,2]
[343658430,1732804241322,-500.0,0.00024556,2]
[343658431,1732804241331,-500.0,0.00024556,2]
[343658432,1732804241341,-500.0,0.00024556,2]
[343658433,1732804241351,-500.0,0.00024556,2]
[343658434,1732804241360,-500.0,0.00024556,2]
[343658435,1732804241369,-500.0,0.00024556,2]
[343658436,1732804241378,-500.0,0.00024556,2]
[343658437,1732804241388,-500.0,0.00024556,2]
[343658438,1732804241397,-599.93080196,0.00024556,2]
[343658439,1732804241409,-500.0,0.00024556,2]
[343658440,1732804241424,-500.0,0.00024556,2]
[343658441,1732804241434,-500.0,0.00024556,2]
[343658442,1732804241445,-500.0,0.00024556,2]
[343658443,1732804241455,-500.0,0.00024556,2]
[343658444,1732804241464,-500.0,0.00024556,2]
[343658445,1732804241474,-500.0,0.00024556,2]
[343658446,1732804241484,-500.0,0.00024556,2]
[343658447,1732804241494,-383.51399331,0.00024556,2]
[343658448,1732804241504,-500.0,0.00024556,2]
[343658449,1732804241514,-500.0,0.00024556,2]
[343658450,1732804241524,-500.0,0.00024556,2]
[343658451,1732804241533,-500.0,0.00024556,2]
[343658452,1732804241542,-500.0,0.00024556,2]
[343658453,1732804241551,-500.0,0.00024556,2]
[343658454,1732804241562,-500.0,0.00024556,2]
[343658455,1732804241572,-500.0,0.00024556,2]
[343658456,1732804241581,-500.0,0.00024556,2]
[343658457,1732804241591,-500.0,0.00024556,2]
[343658458,1732804241600,-500.0,0.00024556,2]
[343658459,1732804241609,-500.0,0.00024556,2]
[343658460,1732804241619,-499.99999999,0.00024556,2]
[343658461,1732804241628,-154.68,0.00024557,7]
[343658462,1732804241638,-65514.42564445,0.00024557,2]
[343658463,1732804241647,-666.0,0.00024557,2]
[343658464,1732804241660,-7971.64218192,0.00024557,3]
[343658465,1732804241673,-151.0,0.00024557,7]
[343658466,1732804241794,-151.0,0.00024557,7]
[343658467,1732804241807,-1647.99324541,0.00024557,2]
[343658468,1732804241817,-459.595579,0.00024557,7]
[343658469,1732804241826,-459.595579,0.00024557,7]
[343658470,1732804241836,-459.595579,0.00024557,7]
[343658471,1732804241845,-459.595579,0.00024557,7]
[343658472,1732804241855,-7861.93676998,0.00024557,2]
[343658473,1732804241864,-151.0,0.00024557,7]
[343658474,1732804241873,-151.0,0.00024557,7]
[343658475,1732804241883,-151.0,0.00024557,7]
[343658476,1732804241892,-166.689308,0.00024557,7]
[343658477,1732804241903,-151.0,0.00024557,7]
[343658478,1732804241919,-155.792785,0.00024557,7]
[343658479,1732804241928,-2378.0,0.00024559,2]
[343658480,1732804241938,-1104.0,0.00024559,2]
[343658481,1732804241947,-1514.739,0.00024559,2]
[343658482,1732804241957,-248.522,0.00024559,2]
[343658483,1732804241966,-176.645,0.00024569,2]
[343658484,1732804241975,-150.28,0.00024569,2]
[343658485,1732804241984,-150.0,0.00024569,2]
[343658486,1732804241994,-258.95858756,0.00024573,2]
[343658487,1732804242003,-512.02482558,0.00024573,2]
[343658488,1732804242012,-200.96309607,0.00024573,2]
[343658489,1732804242021,-500.0,0.00024573,2]
[343658490,1732804242031,-500.0,0.00024573,2]
[343658491,1732804242040,-170.0,0.00024573,2]
[343658492,1732804242050,-500.0,0.00024573,2]
[343658493,1732804242059,-500.0,0.00024573,2]
[343658494,1732804242068,-500.94072214,0.00024573,2]
[343658495,1732804242077,-501.15002246,0.00024573,2]
[343658496,1732804242086,-1200.000001,0.00024578,2]
[343658497,1732804242096,-3000.0,0.000246,5]
[343658498,1732804242105,-3000.0,0.000246,2]
[343658499,1732804242114,-151.0,0.000246,6]
[343658500,1732804242124,-151.0,0.000246,6]
[343658501,1732804242133,-151.0,0.000246,10]
[343658502,1732804242142,-151.0,0.000246,9]
[343658503,1732804242152,-151.0,0.000246,6]
[343658504,1732804242167,-151.0,0.000246,5]
[343658505,1732804242176,-151.0,0.000246,5]
[343658506,1732804242185,-151.0,0.000246,5]
[343658507,1732804242194,-151.0,0.000246,5]
[343658508,1732804242203,-151.0,0.000246,8]
[343658509,1732804242212,-151.0,0.000246,7]
[343658510,1732804242222,-151.0,0.000246,8]
[343658511,1732804242231,-151.0,0.000246,7]
[343658512,1732804242240,-459.595579,0.000246,7]
[343658513,1732804242249,-459.595579,0.000246,7]
[343658514,1732804242259,-151.0,0.000246,7]
[343658515,1732804242268,-3000.0,0.0002461,2]
[343658516,1732804242278,-3000.0,0.0002462,2]
[343658517,1732804242287,-3000.0,0.0002463,2]
[343658518,1732804242297,-3000.0,0.0002464,2]
[343658519,1732804242306,-151.0,0.0002464,7]
[343658520,1732804242317,-3000.0,0.0002465,2]
[343658521,1732804242327,-165.710752,0.0002465,7]
[343658522,1732804242336,-459.595579,0.0002465,7]
[343658523,1732804242346,-459.595579,0.0002465,7]
[343658524,1732804242356,-354.91880457,0.00024656,2]
[343658525,1732804242365,-323.7547909,0.00024656,2]
[343658526,1732804242374,-498.1358342,0.00024656,2]
[343658527,1732804242383,-398.59485387,0.00024656,2]
[343658528,1732804242393,-151.0,0.00024657,7]
[343658529,1732804242402,-151.0,0.00024657,7]
[343658530,1732804242416,-151.0,0.00024657,7]
[343658531,1732804242425,-151.0,0.00024657,7]
[343658532,1732804242434,-151.0,0.00024657,7]
[343658533,1732804242444,-151.0,0.00024657,7]
[343658534,1732804242453,-151.0,0.00024657,7]
[343658535,1732804242462,-151.0,0.00024657,7]
[343658536,1732804242471,-151.0,0.00024657,7]
[343658537,1732804242481,-151.0,0.00024657,7]
[343658538,1732804242490,-151.0,0.00024657,7]
[343658539,1732804242499,-151.0,0.00024657,7]
[343658540,1732804242508,-196.076176,0.00024657,7]
[343658541,1732804242518,-151.0,0.00024657,2]
[343658542,1732804242529,-162.016946,0.00024657,2]
[343658543,1732804242538,-445.983369,0.00024657,7]
[343658544,1732804242548,-445.983369,0.00024657,7]
[343658545,1732804242557,-445.983369,0.00024657,7]
[343658546,1732804242573,-445.983369,0.00024657,7]
[343658547,1732804242585,-445.983369,0.00024657,7]
[343658548,1732804242595,-445.983369,0.00024657,7]
[343658549,1732804242604,-445.983369,0.00024657,7]
[343658550,1732804242614,-445.983369,0.00024657,7]
[343658551,1732804242623,-445.983369,0.00024657,7]
[343658552,1732804242632,-445.983369,0.00024657,7]
[343658553,1732804242641,-445.983369,0.00024657,7]
[343658554,1732804242650,-445.983369,0.00024657,7]
[343658555,1732804242664,-445.983369,0.00024657,7]
[343658556,1732804242675,-445.983369,0.00024657,7]
[343658557,1732804242684,-445.983369,0.00024657,7]
[343658558,1732804242694,-445.983369,0.00024657,7]
[343658559,1732804242704,-445.983369,0.00024657,7]
[343658560,1732804242716,-445.983369,0.00024657,7]
[343658561,1732804242728,-445.983369,0.00024657,7]
[343658562,1732804242738,-445.983361,0.00024657,7]
[343658563,1732804242748,-263.731495,0.00024657,7]
[343658564,1732804242757,-263.731495,0.00024657,7]
[343658565,1732804242766,-263.731495,0.00024657,7]
[343658566,1732804242777,-263.731495,0.00024657,7]
[343658567,1732804242786,-263.731495,0.00024657,7]
[343658568,1732804242796,-263.731495,0.00024657,7]
[343658569,1732804242807,-263.731495,0.00024657,7]
[343658570,1732804242816,-263.731495,0.00024657,7]
[343658571,1732804242826,-263.731495,0.00024657,7]
[343658572,1732804242836,-263.731495,0.00024657,7]
[343658573,1732804242845,-263.731495,0.00024657,7]
[343658574,1732804242855,-263.731495,0.00024657,7]
[343658575,1732804242864,-263.731495,0.00024657,7]
[343658576,1732804242874,-263.731495,0.00024657,7]
[343658577,1732804242883,-263.731495,0.00024657,7]
[343658578,1732804242892,-263.731495,0.00024657,7]
[343658579,1732804242902,-263.731495,0.00024657,7]
[343658580,1732804242915,-263.731495,0.00024657,7]
[343658581,1732804242924,-263.731495,0.00024657,7]
[343658582,1732804242934,-263.731488,0.00024657,7]
[343658583,1732804242944,-500.0,0.00024657,3]
[343658584,1732804242953,-500.0,0.00024657,3]
[343658585,1732804242962,-500.0,0.00024657,3]
[343658586,1732804242972,-500.0,0.00024657,3]
[343658587,1732804242981,-229.73150752,0.00024657,3]
[343658588,1732804242990,-183.125755,0.00024657,7]
[343658589,1732804242999,-183.125755,0.00024657,7]
[343658590,1732804243009,-183.125755,0.00024657,7]
[343658592,1732804243018,-183.125755,0.00024657,7]
[343658593,1732804243028,-183.125755,0.00024657,7]
[343658594,1732804243037,-183.125755,0.00024657,7]
[343658596,1732804243047,-183.125755,0.00024657,7]
[343658597,1732804243057,-183.125755,0.00024657,7]
[343658598,1732804243066,-183.125755,0.00024657,7]
[343658599,1732804243076,-183.125755,0.00024657,7]
[343658600,1732804243086,-183.125755,0.00024657,7]
[343658601,1732804243095,-183.125755,0.00024657,7]
[343658602,1732804243104,-183.125755,0.00024657,7]
[343658603,1732804243114,-183.125755,0.00024657,7]
[343658604,1732804243123,-183.125755,0.00024657,7]
[343658606,1732804243133,-183.125755,0.00024657,7]
[343658607,1732804243142,-183.125755,0.00024657,7]
[343658608,1732804243151,-183.125755,0.00024657,7]
[343658609,1732804243165,-183.125755,0.00024657,7]
[343658610,1732804243174,-183.125759,0.00024657,7]
[343658611,1732804243183,-500.0,0.00024657,3]
[343658612,1732804243193,-500.0,0.00024657,3]
[343658613,1732804243203,-500.0,0.00024657,3]
[343658614,1732804243213,-321.48831313,0.00024657,3]
[343658615,1732804243222,-503.1300308,0.00024657,3]
[343658617,1732804243231,-151.0,0.00024657,7]
[343658619,1732804243241,-151.0,0.00024657,7]
[343658620,1732804243250,-151.0,0.00024657,7]
[343658622,1732804243260,-151.0,0.00024657,7]
[343658623,1732804243269,-151.0,0.00024657,7]
[343658624,1732804243279,-151.0,0.00024657,7]
[343658625,1732804243288,-151.0,0.00024657,7]
[343658626,1732804243298,-151.0,0.00024657,7]
[343658627,1732804243308,-151.0,0.00024657,7]
[343658629,1732804243317,-152.717662,0.00024657,7]
[343658630,1732804243327,-539.59020582,0.00024657,3]
[343658631,1732804243337,-500.0,0.00024657,3]
[343658632,1732804243347,-604.02886819,0.00024657,3]
[343658633,1732804243356,-151.0,0.00024657,7]
[343658634,1732804243367,-151.0,0.00024657,7]
[343658635,1732804243376,-151.0,0.00024657,7]
[343658636,1732804243386,-151.0,0.00024657,7]
[343658637,1732804243396,-151.0,0.00024657,7]
[343658639,1732804243407,-155.764538,0.00024657,7]
[343658641,1732804243420,-306.38628921,0.00024657,3]
[343658642,1732804243430,-500.0,0.00024657,3]
[343658644,1732804243439,-500.0,0.00024657,3]
[343658646,1732804243448,-502.25480884,0.00024657,3]
[343658648,1732804243458,-500.0,0.00024657,3]
[343658649,1732804243468,-500.0,0.00024657,3]
[343658650,1732804243477,-500.0,0.00024657,3]
[343658651,1732804243487,-330.31738466,0.00024657,3]
[343658652,1732804243497,-500.0,0.00024657,3]
[343658653,1732804243507,-500.0,0.00024657,3]
[343658654,1732804243516,-502.88104884,0.00024657,3]
[343658655,1732804243526,-500.0,0.00024657,3]
[343658656,1732804243535,-500.0,0.00024657,3]
[343658657,1732804243544,-500.0,0.00024657,3]
[343658659,1732804243651,-500.0,0.00024657,3]
[343658660,1732804243666,-500.0,0.00024657,3]
[343658661,1732804243677,-500.0,0.00024657,3]
[343658662,1732804243687,-500.0,0.00024657,3]
[343658663,1732804243696,-500.0,0.00024657,3]
[343658664,1732804243705,-500.0,0.00024657,3]
[343658665,1732804243716,-500.0,0.00024657,3]
[343658666,1732804243728,-500.0,0.00024657,3]
[343658667,1732804243737,-559.50530274,0.00024657,3]
[343658668,1732804243746,-500.0,0.00024657,3]
[343658669,1732804243756,-500.0,0.00024657,3]
[343658670,1732804243766,-243.54393457,0.00024657,3]
[343658671,1732804243776,-500.0,0.00024657,3]
[343658672,1732804243785,-500.0,0.00024657,3]
[343658673,1732804243795,-502.04078436,0.00024657,3]
[343658674,1732804243805,-500.0,0.00024657,3]
[343658675,1732804243814,-500.0,0.00024657,3]
[343658676,1732804243823,-500.0,0.00024657,3]
[343658678,1732804243833,-500.0,0.00024657,3]
[343658679,1732804243843,-500.0,0.00024657,3]
[343658680,1732804243852,-500.0,0.00024657,3]
[343658681,1732804243861,-500.0,0.00024657,3]
[343658682,1732804243871,-500.0,0.00024657,3]
[343658683,1732804243880,-500.0,0.00024657,3]
[343658684,1732804243890,-500.0,0.00024657,3]
[343658685,1732804243900,-500.0,0.00024657,3]
[343658686,1732804243912,-500.0,0.00024657,3]
[343658687,1732804243921,-500.0,0.00024657,3]
[343658688,1732804243931,-500.0,0.00024657,3]
[343658689,1732804243940,-376.26750385,0.00024657,3]
[343658690,1732804243950,-500.0,0.00024657,3]
[343658691,1732804243959,-500.0,0.00024657,3]
[343658692,1732804243968,-500.0,0.00024657,3]
[343658693,1732804243978,-503.90796102,0.00024657,3]
[343658694,1732804243987,-503.22899559,0.00024657,3]
[343658695,1732804243996,-558.33984864,0.00024657,3]
[343658696,1732804244005,-502.65933547,0.00024657,3]
[343658697,1732804244015,-324.18656449,0.00024657,3]
[343658698,1732804244025,-258.05940754,0.00024657,3]
[343658699,1732804244034,-623.337733,0.00024657,7]
[343658700,1732804244044,-623.337733,0.00024657,7]
[343658701,1732804244054,-623.337733,0.00024657,7]
[343658702,1732804244063,-623.337733,0.00024657,7]
[343658703,1732804244072,-623.337733,0.00024657,7]
[343658704,1732804244082,-623.337733,0.00024657,7]
[343658705,1732804244091,-623.337733,0.00024657,7]
[343658706,1732804244101,-623.337733,0.00024657,7]
[343658707,1732804244111,-623.337733,0.00024657,7]
[343658708,1732804244122,-623.337733,0.00024657,7]
[343658709,1732804244133,-623.337733,0.00024657,7]
[343658710,1732804244144,-623.337733,0.00024657,7]
[343658711,1732804244155,-623.337733,0.00024657,7]
[343658712,1732804244168,-623.337733,0.00024657,7]
[343658713,1732804244178,-623.337733,0.00024657,7]
[343658714,1732804244188,-623.337733,0.00024657,7]
[343658715,1732804244198,-623.337733,0.00024657,7]
[343658716,1732804244209,-623.337733,0.00024657,7]
[343658717,1732804244218,-505.32589081,0.00024657,3]
[343658718,1732804244228,-623.337733,0.00024657,7]
[343658719,1732804244238,-623.337725,0.00024657,7]
[343658720,1732804244247,-500.0,0.00024657,3]
[343658721,1732804244257,-500.0,0.00024657,3]
[343658722,1732804244266,-500.0,0.00024657,3]
[343658723,1732804244277,-506.68246536,0.00024657,3]
[343658724,1732804244286,-506.84709154,0.00024657,3]
[343658725,1732804244296,-506.84253744,0.00024657,3]
[343658726,1732804244305,-500.0,0.00024657,3]
[343658727,1732804244314,-500.0,0.00024657,3]
[343658728,1732804244324,-503.2507034,0.00024657,3]
[343658729,1732804244334,-500.0,0.00024657,3]
[343658730,1732804244344,-504.8696953,0.00024657,3]
[343658731,1732804244354,-626.86634547,0.00024657,3]
[343658732,1732804244363,-500.0,0.00024657,3]
[343658733,1732804244373,-500.0,0.00024657,3]
[343658734,1732804244382,-476.12788319,0.00024657,3]
[343658735,1732804244391,-734.564847,0.00024657,7]
[343658736,1732804244400,-734.564847,0.00024657,7]
[343658737,1732804244412,-734.564847,0.00024657,7]
[343658738,1732804244421,-734.564847,0.00024657,7]
[343658739,1732804244430,-734.564847,0.00024657,7]
[343658740,1732804244439,-734.564847,0.00024657,7]
[343658741,1732804244448,-734.564847,0.00024657,7]
[343658742,1732804244458,-734.564847,0.00024657,7]
[343658743,1732804244468,-734.564847,0.00024657,7]
[343658744,1732804244477,-734.564847,0.00024657,7]
[343658745,1732804244487,-734.564847,0.00024657,7]
[343658746,1732804244496,-734.564847,0.00024657,7]
[343658747,1732804244506,-734.564847,0.00024657,7]
[343658748,1732804244515,-734.564847,0.00024657,7]
[343658749,1732804244524,-734.564847,0.00024657,7]
[343658750,1732804244534,-734.564847,0.00024657,7]
[343658751,1732804244544,-734.564847,0.00024657,7]
[343658752,1732804244553,-734.564847,0.00024657,7]
[343658753,1732804244562,-734.564847,0.00024657,7]
[343658754,1732804244572,-734.564854,0.00024657,7]
[343658755,1732804244581,-500.0,0.00024657,3]
[343658756,1732804244591,-510.8431275,0.00024657,3]
[343658757,1732804244600,-182.93777268,0.00024657,3]
[343658758,1732804244610,-500.0,0.00024657,3]
[343658759,1732804244619,-556.188121,0.00024657,7]
[343658760,1732804244629,-556.188121,0.00024657,7]
[343658761,1732804244638,-556.188121,0.00024657,7]
[343658762,1732804244648,-556.188121,0.00024657,7]
[343658763,1732804244657,-556.188121,0.00024657,7]
[343658764,1732804244669,-556.188121,0.00024657,7]
[343658765,1732804244680,-556.188121,0.00024657,7]
[343658766,1732804244690,-365.98970602,0.00024657,3]
[343658767,1732804244699,-556.188121,0.00024657,7]
[343658768,1732804244708,-556.188121,0.00024657,7]
[343658769,1732804244722,-556.188121,0.00024657,7]
[343658770,1732804244733,-556.188121,0.00024657,7]
[343658771,1732804244742,-556.188121,0.00024657,7]
[343658772,1732804244752,-556.188121,0.00024657,7]
[343658773,1732804244762,-556.188121,0.00024657,7]
[343658774,1732804244772,-556.188121,0.00024657,7]
[343658775,1732804244781,-556.188121,0.00024657,7]
[343658776,1732804244793,-556.188121,0.00024657,7]
[343658777,1732804244803,-556.188121,0.00024657,7]
[343658778,1732804244813,-556.188121,0.00024657,7]
[343658779,1732804244822,-556.188126,0.00024657,7]
[343658780,1732804244831,-500.0,0.00024657,3]
[343658781,1732804244841,-500.0,0.00024657,3]
[343658782,1732804244851,-515.39840153,0.00024657,3]
[343658783,1732804244860,-500.0,0.00024657,3]
[343658784,1732804244869,-500.0,0.00024657,3]
[343658785,1732804244879,-151.0,0.00024657,7]
[343658786,1732804244888,-151.0,0.00024657,7]
[343658787,1732804244897,-151.0,0.00024657,7]
[343658788,1732804244909,-151.0,0.00024657,7]
[343658789,1732804244921,-502.09391748,0.00024657,3]
[343658790,1732804244930,-502.02339263,0.00024657,3]
[343658791,1732804244939,-151.524509,0.00024657,7]
[343658792,1732804244949,-500.0,0.00024657,3]
[343658793,1732804244958,-500.0,0.00024657,3]
[343658794,1732804244968,-500.0,0.00024657,3]
[343658795,1732804244977,-500.0,0.00024657,3]
[343658796,1732804244987,-500.0,0.00024657,3]
[343658797,1732804244996,-472.6,0.00024657,3]
[343658798,1732804245006,-151.0,0.00024657,7]
[343658799,1732804245015,-151.0,0.00024657,7]
[343658800,1732804245025,-284.117808,0.00024657,7]
[343658801,1732804245036,-500.76685933,0.00024657,3]
[343658802,1732804245045,-500.0,0.00024657,3]
[343658803,1732804245055,-507.26092999,0.00024657,3]
[343658804,1732804245064,-500.0,0.00024657,3]
[343658805,1732804245073,-500.0,0.00024657,3]
[343658806,1732804245082,-501.60200728,0.00024657,3]
[343658807,1732804245091,-500.0,0.00024657,3]
[343658808,1732804245101,-500.0,0.00024657,3]
[343658809,1732804245111,-500.0,0.00024657,3]
[343658810,1732804245120,-500.0,0.00024657,3]
[343658811,1732804245130,-500.0,0.00024657,3]
[343658812,1732804245139,-500.0,0.00024657,3]
[343658813,1732804245148,-500.0,0.00024657,3]
[343658814,1732804245157,-500.0,0.00024657,3]
[343658815,1732804245169,-524.73169188,0.00024657,3]
[343658816,1732804245179,-500.0,0.00024657,3]
[343658817,1732804245188,-500.0,0.00024657,3]
[343658818,1732804245197,-500.0,0.00024657,3]
[343658819,1732804245206,-500.0,0.00024657,3]
[343658820,1732804245215,-554.22115936,0.00024657,3]
[343658821,1732804245224,-500.0,0.00024657,3]
[343658822,1732804245234,-500.0,0.00024657,3]
[343658823,1732804245243,-500.0,0.00024657,3]